[Event "*** MasterClass Titled Tuesday Blitz"]
[Site "Chess.com"]
[Date "2017.08.01"]
[Round "4"]
[White "Journey_to_GrandMaster_YT"]
[Black "pKiLz5Rn9b"]
[Result "1-0"]
[WhiteElo "2331"]
[BlackElo "2572"]
[TimeControl "180+2"]
[EndTime "13:54:31 PDT"]
[Termination "Journey_to_GrandMaster_YT won by resignation"]

1. d4 {[%clk 0:03:01.9]} 1... Nf6 {[%clk 0:03:00.6]} 2. Nf3 {[%clk 0:03:03]}
2... e6 {[%clk 0:03:01.1]} 3. e3 {[%clk 0:03:00.1]} 3... d5 {[%clk 0:03:01.5]}
4. Bd3 {[%clk 0:02:58.7]} 4... Nbd7 {[%clk 0:03:02.5]} 5. O-O {[%clk 0:02:59.2]}
5... Bd6 {[%clk 0:02:59.7]} 6. b3 {[%clk 0:02:59.6]} 6... e5 {[%clk 0:02:56.1]}
7. dxe5 {[%clk 0:02:51.9]} 7... Nxe5 {[%clk 0:02:56.9]} 8. Nxe5 {[%clk
0:02:52.3]} 8... Bxe5 {[%clk 0:02:57.9]} 9. c3 {[%clk 0:02:53.6]} 9... O-O
{[%clk 0:02:52.3]} 10. h3 {[%clk 0:02:49.7]} 10... c6 {[%clk 0:02:53]} 11. Bb2
{[%clk 0:02:50.4]} 11... Ne4 {[%clk 0:02:47.1]} 12. Qc2 {[%clk 0:02:49.7]} 12...
Bf5 {[%clk 0:02:26]} 13. f3 {[%clk 0:02:25.1]} 13... Qh4 {[%clk 0:01:14.9]} 14.
fxe4 {[%clk 0:02:01.5]} 14... dxe4 {[%clk 0:01:15.7]} 15. Rxf5 {[%clk
0:01:49.1]} 15... exd3 {[%clk 0:01:11.4]} 16. Qf2 {[%clk 0:01:30.9]} 16... Bg3
{[%clk 0:01:00.3]} 17. Qf3 {[%clk 0:01:19.3]} 17... Be1 {[%clk 0:01:01]} 18. Rf4
{[%clk 0:01:03.5]} 18... Qe7 {[%clk 0:00:56.8]} 19. Na3 {[%clk 0:00:49.6]} 19...
d2 {[%clk 0:00:57.9]} 20. Nc2 {[%clk 0:00:46.4]} 20... Rad8 {[%clk 0:00:58.9]}
21. Nxe1 {[%clk 0:00:44.7]} 21... dxe1=Q+ {[%clk 0:00:58.9]} 22. Rxe1 {[%clk
0:00:45]} 22... Rd2 {[%clk 0:00:59.3]} 23. Re2 {[%clk 0:00:38.9]} 23... Rfd8
{[%clk 0:00:56.6]} 24. Kh2 {[%clk 0:00:35]} 24... Qe5 {[%clk 0:00:52.2]} 25. h4
{[%clk 0:00:20.9]} 25... h6 {[%clk 0:00:50.1]} 26. Ba3 {[%clk 0:00:21]} 26...
Rxe2 {[%clk 0:00:41.6]} 27. Qxe2 {[%clk 0:00:21.5]} 27... g5 {[%clk 0:00:43.2]}
28. hxg5 {[%clk 0:00:22.8]} 28... hxg5 {[%clk 0:00:44.6]} 29. Qg4 {[%clk
0:00:23.6]} 29... Kh7 {[%clk 0:00:41]} 30. Qf5+ {[%clk 0:00:13.6]} 30... Qxf5
{[%clk 0:00:39.8]} 31. Rxf5 {[%clk 0:00:14.9]} 31... Kg6 {[%clk 0:00:41.7]} 32.
Rf2 {[%clk 0:00:14.7]} 32... Rd3 {[%clk 0:00:42.7]} 33. Bc5 {[%clk 0:00:14.3]}
33... b6 {[%clk 0:00:42.3]} 34. Bd4 {[%clk 0:00:11.7]} 34... f5 {[%clk
0:00:43.1]} 35. b4 {[%clk 0:00:09.7]} 35... Rd1 {[%clk 0:00:37.4]} 36. Kg3
{[%clk 0:00:08.2]} 36... Re1 {[%clk 0:00:35.1]} 37. Kf3 {[%clk 0:00:08.6]} 37...
Kh5 {[%clk 0:00:33.8]} 38. Kg3 {[%clk 0:00:08.8]} 38... Kg6 {[%clk 0:00:31.7]}
39. c4 {[%clk 0:00:09.1]} 39... Rc1 {[%clk 0:00:31.8]} 40. c5 {[%clk 0:00:07.4]}
40... b5 {[%clk 0:00:32.9]} 41. a4 {[%clk 0:00:06.9]} 41... Rc4 {[%clk
0:00:25.6]} 42. axb5 {[%clk 0:00:07.7]} 42... cxb5 {[%clk 0:00:26.9]} 43. Ra2
{[%clk 0:00:09.1]} 43... Rxb4 {[%clk 0:00:22.1]} 44. Ra6+ {[%clk 0:00:09.8]}
44... Kh5 {[%clk 0:00:21.3]} 45. Rxa7 {[%clk 0:00:10.3]} 45... f4+ {[%clk
0:00:22.3]} 46. Kf3 {[%clk 0:00:11]} 46... fxe3 {[%clk 0:00:22.9]} 47. Bxe3
{[%clk 0:00:12.2]} 47... Rc4 {[%clk 0:00:22.4]} 48. Rb7 {[%clk 0:00:11.7]} 48...
b4 {[%clk 0:00:23.3]} 49. Rb5 {[%clk 0:00:12.6]} 49... Kg6 {[%clk 0:00:22.1]}
50. g4 {[%clk 0:00:12.8]} 50... Kf6 {[%clk 0:00:22.6]} 51. Rb6+ {[%clk
0:00:13.5]} 51... Ke5 {[%clk 0:00:20.7]} 52. Rg6 {[%clk 0:00:13.7]} 52... b3
{[%clk 0:00:14]} 53. Rb6 {[%clk 0:00:14.4]} 53... Rc3 {[%clk 0:00:14.3]} 54. Ke2
{[%clk 0:00:14.4]} 54... Kd5 {[%clk 0:00:13]} 55. Kd2 {[%clk 0:00:11.8]} 55...
Kc4 {[%clk 0:00:14.1]} 56. c6 {[%clk 0:00:10.6]} 56... Rc2+ {[%clk 0:00:13.7]}
57. Kd1 {[%clk 0:00:11.7]} 57... Rc3 {[%clk 0:00:05.8]} 58. c7 {[%clk
0:00:10.9]} 58... Kd5 {[%clk 0:00:05.3]} 59. Bxg5 {[%clk 0:00:10]} 59... Rxc7
{[%clk 0:00:05.6]} 60. Rxb3 {[%clk 0:00:10.9]} 60... Rg7 {[%clk 0:00:06.3]} 61.
Rb5+ {[%clk 0:00:11.9]} 61... Kc4 {[%clk 0:00:07]} 62. Rf5 {[%clk 0:00:12.7]}
62... Kd4 {[%clk 0:00:08.5]} 63. Ke2 {[%clk 0:00:13.7]} 63... Ke4 {[%clk
0:00:08.9]} 64. Kf2 {[%clk 0:00:14.9]} 1-0

[Event "*** MasterClass Titled Tuesday Blitz"]
[Site "Chess.com"]
[Date "2017.08.01"]
[Round "4"]
[White "TryingToGetBetter94"]
[Black "Rumpel-VK"]
[Result "1/2-1/2"]
[WhiteElo "2325"]
[BlackElo "2426"]
[TimeControl "180+2"]
[EndTime "13:55:07 PDT"]
[Termination "Game drawn by stalemate"]

1. e4 {[%clk 0:03:01.9]} 1... d6 {[%clk 0:02:58.6]} 2. d4 {[%clk 0:03:02.8]}
2... Nf6 {[%clk 0:02:59.7]} 3. Nc3 {[%clk 0:03:04.3]} 3... e5 {[%clk 0:03:00.5]}
4. Nf3 {[%clk 0:03:05.6]} 4... Nbd7 {[%clk 0:03:01.5]} 5. Bc4 {[%clk 0:03:06.8]}
5... Be7 {[%clk 0:03:02.4]} 6. O-O {[%clk 0:03:07.7]} 6... O-O {[%clk
0:03:03.3]} 7. Re1 {[%clk 0:03:09.3]} 7... c6 {[%clk 0:03:04.4]} 8. a4 {[%clk
0:03:10.9]} 8... exd4 {[%clk 0:03:05.5]} 9. Nxd4 {[%clk 0:03:11.9]} 9... Ne5
{[%clk 0:03:06.5]} 10. Ba2 {[%clk 0:03:10.3]} 10... Re8 {[%clk 0:03:07.6]} 11.
h3 {[%clk 0:03:08]} 11... Bd7 {[%clk 0:03:05.4]} 12. f4 {[%clk 0:03:07.9]} 12...
Ng6 {[%clk 0:03:05.2]} 13. Be3 {[%clk 0:03:07.6]} 13... Qc7 {[%clk 0:03:02.8]}
14. Qd2 {[%clk 0:03:06.5]} 14... Bf8 {[%clk 0:02:51.1]} 15. Bf2 {[%clk
0:03:02.3]} 15... h6 {[%clk 0:02:42.2]} 16. Nf3 {[%clk 0:02:30.6]} 16... Be6
{[%clk 0:02:31.8]} 17. Bxe6 {[%clk 0:02:21.7]} 17... fxe6 {[%clk 0:02:32.4]} 18.
Nh4 {[%clk 0:02:00.7]} 18... Nxh4 {[%clk 0:02:27.8]} 19. Bxh4 {[%clk 0:02:02.6]}
19... Be7 {[%clk 0:02:28.6]} 20. Rad1 {[%clk 0:01:50.5]} 20... Rad8 {[%clk
0:02:08.8]} 21. Qf2 {[%clk 0:01:45.6]} 21... d5 {[%clk 0:02:05.1]} 22. e5 {[%clk
0:01:37.7]} 22... Nd7 {[%clk 0:02:05]} 23. Bxe7 {[%clk 0:01:36.8]} 23... Rxe7
{[%clk 0:02:05.8]} 24. Qxa7 {[%clk 0:01:31.6]} 24... Nb6 {[%clk 0:02:00.8]} 25.
a5 {[%clk 0:01:30.1]} 25... Nc4 {[%clk 0:02:01.6]} 26. b4 {[%clk 0:01:20.3]}
26... Rf7 {[%clk 0:01:56]} 27. Ne2 {[%clk 0:01:09.5]} 27... c5 {[%clk 0:01:41]}
28. Qxc5 {[%clk 0:01:08.4]} 28... Qxc5+ {[%clk 0:01:41]} 29. bxc5 {[%clk
0:01:10.3]} 29... Nxa5 {[%clk 0:01:40.8]} 30. Nd4 {[%clk 0:01:08.4]} 30... Re8
{[%clk 0:01:37.6]} 31. Rf1 {[%clk 0:01:03.5]} 31... Rc7 {[%clk 0:01:37.4]} 32.
f5 {[%clk 0:01:01.7]} 32... exf5 {[%clk 0:01:37.4]} 33. Rxf5 {[%clk 0:01:02.7]}
33... Rxc5 {[%clk 0:01:37.4]} 34. e6 {[%clk 0:01:02]} 34... Nc6 {[%clk
0:01:35.2]} 35. Rf7 {[%clk 0:00:32.5]} 35... Nxd4 {[%clk 0:01:23.1]} 36. Rxd4
{[%clk 0:00:34.4]} 36... Rxe6 {[%clk 0:01:09.4]} 37. Rxb7 {[%clk 0:00:34.6]}
37... Rxc2 {[%clk 0:01:06.8]} 38. Rg4 {[%clk 0:00:24.2]} 38... g5 {[%clk
0:01:03.3]} 39. Ra4 {[%clk 0:00:25.2]} 39... Re8 {[%clk 0:00:56]} 40. Ra6 {[%clk
0:00:16.6]} 40... Rc1+ {[%clk 0:00:49.6]} 41. Kh2 {[%clk 0:00:17.2]} 41... Rf1
{[%clk 0:00:46.3]} 42. Rg6+ {[%clk 0:00:17.2]} 42... Kf8 {[%clk 0:00:47.2]} 43.
Rxh6 {[%clk 0:00:15.4]} 43... Rf7 {[%clk 0:00:44.8]} 44. Rh8+ {[%clk 0:00:14.4]}
44... Kg7 {[%clk 0:00:45.9]} 45. Rxe8 {[%clk 0:00:11.3]} 45... Rxb7 {[%clk
0:00:46]} 46. Re5 {[%clk 0:00:12.6]} 46... Kf6 {[%clk 0:00:24.4]} 47. Rxd5
{[%clk 0:00:13.1]} 47... Rb6 {[%clk 0:00:24.3]} 48. Ra5 {[%clk 0:00:13.9]} 48...
Kg6 {[%clk 0:00:25.2]} 49. Ra3 {[%clk 0:00:14.3]} 49... Rc6 {[%clk 0:00:25.3]}
50. g4 {[%clk 0:00:15.1]} 50... Rb6 {[%clk 0:00:25.3]} 51. Kg3 {[%clk
0:00:16.4]} 51... Rc6 {[%clk 0:00:26.4]} 52. Rf3 {[%clk 0:00:17.4]} 52... Rb6
{[%clk 0:00:27.4]} 53. Rc3 {[%clk 0:00:18.3]} 53... Ra6 {[%clk 0:00:28.5]} 54.
Rb3 {[%clk 0:00:19.8]} 54... Rc6 {[%clk 0:00:29.4]} 55. h4 {[%clk 0:00:20.5]}
55... gxh4+ {[%clk 0:00:29.9]} 56. Kxh4 {[%clk 0:00:22.4]} 56... Ra6 {[%clk
0:00:31]} 57. Rb5 {[%clk 0:00:23.2]} 57... Rc6 {[%clk 0:00:31.8]} 58. Rg5+
{[%clk 0:00:24.2]} 58... Kh6 {[%clk 0:00:32.4]} 59. Rg8 {[%clk 0:00:22.4]} 59...
Rc1 {[%clk 0:00:30.5]} 60. Rh8+ {[%clk 0:00:11.3]} 60... Kg6 {[%clk 0:00:29.9]}
61. Rg8+ {[%clk 0:00:12.2]} 61... Kh6 {[%clk 0:00:30.6]} 62. Rh8+ {[%clk
0:00:13.4]} 62... Kg7 {[%clk 0:00:31.1]} 63. Rh5 {[%clk 0:00:14.3]} 63... Kg6
{[%clk 0:00:31.6]} 64. Rg5+ {[%clk 0:00:15.1]} 64... Kh6 {[%clk 0:00:32.2]} 65.
Rh5+ {[%clk 0:00:16.7]} 65... Kg6 {[%clk 0:00:30.9]} 66. Ra5 {[%clk 0:00:17.7]}
66... Rh1+ {[%clk 0:00:30.7]} 67. Kg3 {[%clk 0:00:19.1]} 67... Rg1+ {[%clk
0:00:31.7]} 68. Kf3 {[%clk 0:00:19.5]} 68... Rf1+ {[%clk 0:00:32.4]} 69. Kg2
{[%clk 0:00:21]} 69... Rb1 {[%clk 0:00:32.9]} 70. Kg3 {[%clk 0:00:19.5]} 70...
Rg1+ {[%clk 0:00:33.2]} 71. Kf3 {[%clk 0:00:20.8]} 71... Rf1+ {[%clk 0:00:33.9]}
72. Kg2 {[%clk 0:00:22.3]} 72... Rb1 {[%clk 0:00:34.5]} 73. Kf2 {[%clk
0:00:20.9]} 73... Rb3 {[%clk 0:00:34.8]} 74. Kg2 {[%clk 0:00:21.7]} 74... Rc3
{[%clk 0:00:35.6]} 75. Rf5 {[%clk 0:00:22.2]} 75... Rb3 {[%clk 0:00:36.3]} 76.
Rf3 {[%clk 0:00:22.6]} 76... Rxf3 {[%clk 0:00:36.2]} 77. Kxf3 {[%clk 0:00:24.5]}
77... Kg5 {[%clk 0:00:37.1]} 78. Kg3 {[%clk 0:00:25.8]} 78... Kg6 {[%clk
0:00:37.5]} 79. Kf4 {[%clk 0:00:26.8]} 79... Kf6 {[%clk 0:00:36.1]} 80. g5+
{[%clk 0:00:28.3]} 80... Kg6 {[%clk 0:00:36]} 81. Kg4 {[%clk 0:00:30.2]} 81...
Kg7 {[%clk 0:00:37]} 82. Kf5 {[%clk 0:00:32.1]} 82... Kf7 {[%clk 0:00:37.9]} 83.
Kf4 {[%clk 0:00:34]} 83... Kg6 {[%clk 0:00:38.8]} 84. Kg4 {[%clk 0:00:35.6]}
84... Kg7 {[%clk 0:00:39.7]} 85. Kf5 {[%clk 0:00:37.5]} 85... Kf7 {[%clk
0:00:40.6]} 86. g6+ {[%clk 0:00:39.4]} 86... Kg7 {[%clk 0:00:41]} 87. Kg5 {[%clk
0:00:40.8]} 87... Kg8 {[%clk 0:00:41]} 88. Kf6 {[%clk 0:00:42.3]} 88... Kh8
{[%clk 0:00:38.6]} 89. Kf5 {[%clk 0:00:39.8]} 89... Kg7 {[%clk 0:00:39.3]} 90.
Kg5 {[%clk 0:00:39.9]} 90... Kg8 {[%clk 0:00:40.2]} 91. Kh6 {[%clk 0:00:41.1]}
91... Kh8 {[%clk 0:00:41.1]} 92. g7+ {[%clk 0:00:42.8]} 92... Kg8 {[%clk
0:00:42]} 93. Kg6 {[%clk 0:00:44.7]} 1/2-1/2

[Event "*** MasterClass Titled Tuesday Blitz"]
[Site "Chess.com"]
[Date "2017.08.01"]
[Round "5"]
[White "Vrolijk"]
[Black "XDPS"]
[Result "0-1"]
[WhiteElo "2500"]
[BlackElo "2528"]
[TimeControl "180+2"]
[EndTime "13:56:50 PDT"]
[Termination "XDPS won by resignation"]

1. d4 {[%clk 0:03:01.9]} 1... d5 {[%clk 0:03:00.7]} 2. c4 {[%clk 0:03:02.9]}
2... c6 {[%clk 0:03:01.8]} 3. Nf3 {[%clk 0:03:03.6]} 3... Nf6 {[%clk 0:03:02.9]}
4. Nc3 {[%clk 0:03:05]} 4... e6 {[%clk 0:03:04]} 5. Bg5 {[%clk 0:03:06.5]} 5...
Nbd7 {[%clk 0:03:04.6]} 6. e3 {[%clk 0:03:05.8]} 6... Qa5 {[%clk 0:03:04.9]} 7.
Nd2 {[%clk 0:03:02.8]} 7... dxc4 {[%clk 0:03:00.7]} 8. Bxf6 {[%clk 0:03:02.8]}
8... Nxf6 {[%clk 0:03:02.6]} 9. Nxc4 {[%clk 0:03:04.3]} 9... Qc7 {[%clk
0:03:04.2]} 10. Be2 {[%clk 0:03:05.6]} 10... Be7 {[%clk 0:03:05.5]} 11. O-O
{[%clk 0:03:06.5]} 11... O-O {[%clk 0:03:07.2]} 12. Rc1 {[%clk 0:03:07.3]} 12...
Bd7 {[%clk 0:03:06.7]} 13. Ne5 {[%clk 0:03:07.2]} 13... Rfd8 {[%clk 0:03:08.2]}
14. a3 {[%clk 0:03:05.9]} 14... Be8 {[%clk 0:03:08.3]} 15. Qc2 {[%clk 0:02:58]}
15... Rac8 {[%clk 0:03:09.1]} 16. Rfd1 {[%clk 0:02:57.2]} 16... Qb8 {[%clk
0:03:09]} 17. h3 {[%clk 0:02:56]} 17... c5 {[%clk 0:03:09.7]} 18. dxc5 {[%clk
0:02:57.2]} 18... Qxe5 {[%clk 0:03:06.8]} 0-1

[Event "*** MasterClass Titled Tuesday Blitz"]
[Site "Chess.com"]
[Date "2017.08.01"]
[Round "5"]
[White "livestrong04"]
[Black "Rodalquilar"]
[Result "0-1"]
[WhiteElo "2362"]
[BlackElo "2537"]
[TimeControl "180+2"]
[EndTime "13:57:23 PDT"]
[Termination "Rodalquilar won by resignation"]

1. e4 {[%clk 0:03:01.9]} 1... e5 {[%clk 0:03:00.8]} 2. Nf3 {[%clk 0:03:02.2]}
2... Nc6 {[%clk 0:03:02.3]} 3. d4 {[%clk 0:03:03.6]} 3... exd4 {[%clk
0:03:03.4]} 4. Nxd4 {[%clk 0:03:05.3]} 4... Bb4+ {[%clk 0:03:04.7]} 5. Nc3
{[%clk 0:03:04.5]} 5... Nf6 {[%clk 0:03:02]} 6. Nxc6 {[%clk 0:03:05.2]} 6...
bxc6 {[%clk 0:03:03.3]} 7. Bd3 {[%clk 0:03:06.8]} 7... O-O {[%clk 0:03:04]} 8.
O-O {[%clk 0:03:07.5]} 8... d5 {[%clk 0:03:05.4]} 9. exd5 {[%clk 0:03:08.8]}
9... cxd5 {[%clk 0:03:07.3]} 10. Bg5 {[%clk 0:03:09.8]} 10... c6 {[%clk
0:03:08.9]} 11. Qf3 {[%clk 0:03:11]} 11... Bd6 {[%clk 0:03:08.7]} 12. Rae1
{[%clk 0:03:11]} 12... Rb8 {[%clk 0:03:09.5]} 13. b3 {[%clk 0:02:59.3]} 13... h6
{[%clk 0:03:10.1]} 14. Bd2 {[%clk 0:02:56.2]} 14... Bg4 {[%clk 0:03:05.2]} 15.
Qe3 {[%clk 0:02:35.7]} 15... d4 {[%clk 0:03:06.3]} 0-1

[Event "*** MasterClass Titled Tuesday Blitz"]
[Site "Chess.com"]
[Date "2017.08.01"]
[Round "5"]
[White "iturrizaga"]
[Black "DrHolmes13"]
[Result "0-1"]
[WhiteElo "2606"]
[BlackElo "2382"]
[TimeControl "180+2"]
[EndTime "13:59:04 PDT"]
[Termination "DrHolmes13 won by resignation"]

1. Nf3 {[%clk 0:02:55.7]} 1... Nf6 {[%clk 0:03:00.3]} 2. c4 {[%clk 0:02:57.6]}
2... b6 {[%clk 0:02:57.9]} 3. g3 {[%clk 0:02:59.5]} 3... Bb7 {[%clk 0:02:59]} 4.
Bg2 {[%clk 0:03:01.4]} 4... e6 {[%clk 0:02:58.9]} 5. O-O {[%clk 0:03:02.9]} 5...
Be7 {[%clk 0:02:58.3]} 6. b3 {[%clk 0:03:04.8]} 6... O-O {[%clk 0:02:54.3]} 7.
Bb2 {[%clk 0:03:06.1]} 7... c5 {[%clk 0:02:50]} 8. e3 {[%clk 0:03:07.7]} 8... d5
{[%clk 0:02:47.2]} 9. Qe2 {[%clk 0:03:09.6]} 9... Nc6 {[%clk 0:02:43.9]} 10. Rd1
{[%clk 0:03:11.1]} 10... Qc7 {[%clk 0:02:35.4]} 11. Nc3 {[%clk 0:03:10.2]} 11...
Rfd8 {[%clk 0:02:30.9]} 12. Rac1 {[%clk 0:03:10]} 12... dxc4 {[%clk 0:02:27.8]}
13. bxc4 {[%clk 0:03:10.4]} 13... a6 {[%clk 0:02:26.6]} 14. h3 {[%clk 0:03:11]}
14... h6 {[%clk 0:02:23.3]} 15. Ne1 {[%clk 0:03:11.7]} 15... Na5 {[%clk
0:02:19.6]} 16. f4 {[%clk 0:03:11.8]} 16... Rab8 {[%clk 0:02:16.9]} 17. Nf3
{[%clk 0:03:12]} 17... Bc6 {[%clk 0:02:11.5]} 18. g4 {[%clk 0:03:12.8]} 18... b5
{[%clk 0:02:09.6]} 19. cxb5 {[%clk 0:03:14.7]} 19... axb5 {[%clk 0:02:09.2]} 20.
g5 {[%clk 0:03:15.9]} 20... hxg5 {[%clk 0:02:06.1]} 21. fxg5 {[%clk 0:03:17.8]}
21... Nh5 {[%clk 0:02:04.3]} 22. g6 {[%clk 0:03:16.8]} 22... fxg6 {[%clk
0:02:01.9]} 23. d3 {[%clk 0:03:15.6]} 23... Ng3 {[%clk 0:01:53.9]} 24. Qf2
{[%clk 0:03:15.5]} 24... Rf8 {[%clk 0:01:54.6]} 25. Ne2 {[%clk 0:03:10.9]} 25...
Nxe2+ {[%clk 0:01:50]} 26. Qxe2 {[%clk 0:03:12.8]} 26... Bxf3 {[%clk 0:01:46.3]}
27. Bxf3 {[%clk 0:03:12.9]} 27... Qg3+ {[%clk 0:01:46.3]} 28. Bg2 {[%clk
0:02:56.9]} 28... Bd6 {[%clk 0:01:41.7]} 0-1

[Event "*** MasterClass Titled Tuesday Blitz"]
[Site "Chess.com"]
[Date "2017.08.01"]
[Round "5"]
[White "stefanodinn"]
[Black "KyronGriffith"]
[Result "0-1"]
[WhiteElo "2167"]
[BlackElo "2331"]
[TimeControl "180+2"]
[EndTime "13:59:11 PDT"]
[Termination "KyronGriffith won by resignation"]

1. e4 {[%clk 0:03:01.9]} 1... d5 {[%clk 0:02:58.1]} 2. exd5 {[%clk 0:03:02.2]}
2... Qxd5 {[%clk 0:03:00]} 3. Nc3 {[%clk 0:03:02.6]} 3... Qd6 {[%clk 0:03:01.2]}
4. d4 {[%clk 0:03:03.2]} 4... Nf6 {[%clk 0:03:02.6]} 5. Nf3 {[%clk 0:03:03.7]}
5... a6 {[%clk 0:03:04]} 6. Be3 {[%clk 0:03:01.1]} 6... b5 {[%clk 0:03:01.5]} 7.
a3 {[%clk 0:02:43.1]} 7... Bb7 {[%clk 0:03:02.4]} 8. Be2 {[%clk 0:02:44.2]} 8...
Nbd7 {[%clk 0:03:03.4]} 9. Qd2 {[%clk 0:02:45.2]} 9... e6 {[%clk 0:03:01.2]} 10.
O-O {[%clk 0:02:36.3]} 10... Be7 {[%clk 0:03:02.5]} 11. Rad1 {[%clk 0:02:26]}
11... O-O {[%clk 0:02:59.5]} 12. h3 {[%clk 0:02:06.5]} 12... Rfd8 {[%clk
0:02:59.6]} 13. Qc1 {[%clk 0:02:05.6]} 13... Rac8 {[%clk 0:02:57]} 14. Rfe1
{[%clk 0:02:05.6]} 14... Nd5 {[%clk 0:02:52.4]} 15. Nxd5 {[%clk 0:01:48]} 15...
Bxd5 {[%clk 0:02:54.3]} 16. Ne5 {[%clk 0:01:15.9]} 16... Nxe5 {[%clk 0:02:43.4]}
17. dxe5 {[%clk 0:01:16.2]} 17... Qxe5 {[%clk 0:02:45.3]} 18. Bf4 {[%clk
0:01:13.6]} 18... Qf6 {[%clk 0:02:39.1]} 19. Bg5 {[%clk 0:01:07.5]} 19... Qxg5
{[%clk 0:02:39.2]} 0-1

[Event "*** MasterClass Titled Tuesday Blitz"]
[Site "Chess.com"]
[Date "2017.08.01"]
[Round "5"]
[White "Saitama_Hero"]
[Black "Adham_Fawzy"]
[Result "1-0"]
[WhiteElo "2224"]
[BlackElo "2364"]
[TimeControl "180+2"]
[EndTime "13:59:19 PDT"]
[Termination "Saitama_Hero won by checkmate"]

1. d4 {[%clk 0:03:01.9]} 1... Nf6 {[%clk 0:03:00]} 2. Bg5 {[%clk 0:03:02.4]}
2... d5 {[%clk 0:02:59]} 3. Bxf6 {[%clk 0:03:03.2]} 3... exf6 {[%clk 0:02:59.9]}
4. e3 {[%clk 0:03:05.1]} 4... Nd7 {[%clk 0:02:59.1]} 5. c4 {[%clk 0:03:04.9]}
5... dxc4 {[%clk 0:02:57.4]} 6. Bxc4 {[%clk 0:03:06.8]} 6... Nb6 {[%clk
0:02:58.8]} 7. Bb3 {[%clk 0:03:06.8]} 7... Be6 {[%clk 0:02:59.6]} 8. Nc3 {[%clk
0:03:01.8]} 8... Bd6 {[%clk 0:02:59.7]} 9. Bxe6 {[%clk 0:03:01.5]} 9... fxe6
{[%clk 0:03:00.4]} 10. Qb3 {[%clk 0:03:02.8]} 10... Qd7 {[%clk 0:02:59.5]} 11.
Nf3 {[%clk 0:03:04.2]} 11... O-O-O {[%clk 0:02:58.3]} 12. O-O {[%clk 0:03:04.8]}
12... g5 {[%clk 0:02:58.5]} 13. Rfc1 {[%clk 0:03:02.1]} 13... h5 {[%clk
0:02:58.3]} 14. Nb5 {[%clk 0:02:42.3]} 14... Kb8 {[%clk 0:02:58.8]} 15. Nd2
{[%clk 0:02:38.4]} 15... h4 {[%clk 0:02:57.4]} 16. Ne4 {[%clk 0:02:26.6]} 16...
h3 {[%clk 0:02:52.7]} 17. g3 {[%clk 0:02:25.2]} 17... Nd5 {[%clk 0:02:48.7]} 18.
Nexd6 {[%clk 0:02:17.4]} 18... cxd6 {[%clk 0:02:49.5]} 19. e4 {[%clk 0:02:18.9]}
19... Nb6 {[%clk 0:02:50.3]} 20. Rc7 {[%clk 0:01:45.3]} 20... Qe8 {[%clk
0:02:43.4]} 21. Rac1 {[%clk 0:01:44.8]} 21... Rd7 {[%clk 0:02:34.4]} 22. Qa3
{[%clk 0:01:38.5]} 22... Nc8 {[%clk 0:02:21.1]} 23. Rxc8+ {[%clk 0:01:37.1]}
23... Qxc8 {[%clk 0:02:22.3]} 24. Qxa7# {[%clk 0:01:37.8]} 1-0

[Event "*** MasterClass Titled Tuesday Blitz"]
[Site "Chess.com"]
[Date "2017.08.01"]
[Round "5"]
[White "ShimanovAlex"]
[Black "1lec"]
[Result "1-0"]
[WhiteElo "2612"]
[BlackElo "2054"]
[TimeControl "180+2"]
[EndTime "13:59:35 PDT"]
[Termination "ShimanovAlex won by resignation"]

1. e4 {[%clk 0:02:59.1]} 1... c5 {[%clk 0:03:00.7]} 2. Nf3 {[%clk 0:03:00.4]}
2... d6 {[%clk 0:03:02.2]} 3. d4 {[%clk 0:03:01.4]} 3... cxd4 {[%clk 0:03:04.2]}
4. Nxd4 {[%clk 0:03:02.6]} 4... Nf6 {[%clk 0:03:05.8]} 5. Nc3 {[%clk 0:03:04.2]}
5... a6 {[%clk 0:03:07.4]} 6. Rg1 {[%clk 0:03:02]} 6... e5 {[%clk 0:03:07.5]} 7.
Nb3 {[%clk 0:03:02]} 7... Be7 {[%clk 0:03:07.2]} 8. g4 {[%clk 0:03:02.9]} 8...
h6 {[%clk 0:02:46.6]} 9. h4 {[%clk 0:03:02.6]} 9... Be6 {[%clk 0:02:37.7]} 10.
g5 {[%clk 0:03:02.3]} 10... hxg5 {[%clk 0:02:38.6]} 11. hxg5 {[%clk 0:03:04.2]}
11... Nh5 {[%clk 0:02:15.7]} 12. g6 {[%clk 0:03:02.3]} 12... fxg6 {[%clk
0:01:57.1]} 13. Rxg6 {[%clk 0:03:00.2]} 13... Bf7 {[%clk 0:01:57.8]} 14. Rg1
{[%clk 0:03:00.2]} 14... Nc6 {[%clk 0:01:45.6]} 15. Be3 {[%clk 0:02:59.6]} 15...
Rg8 {[%clk 0:01:14.6]} 16. Nd5 {[%clk 0:02:55.8]} 16... Rc8 {[%clk 0:00:40]} 17.
Bh3 {[%clk 0:02:54.5]} 17... Rb8 {[%clk 0:00:23.9]} 18. Bb6 {[%clk 0:02:53.6]}
18... Qd7 {[%clk 0:00:22.6]} 1-0

[Event "*** MasterClass Titled Tuesday Blitz"]
[Site "Chess.com"]
[Date "2017.08.01"]
[Round "5"]
[White "michaelk123"]
[Black "Sharafiev_Azat"]
[Result "1-0"]
[WhiteElo "2338"]
[BlackElo "2246"]
[TimeControl "180+2"]
[EndTime "14:00:44 PDT"]
[Termination "michaelk123 won by resignation"]

1. e4 {[%clk 0:03:01.9]} 1... c5 {[%clk 0:02:58.9]} 2. Nf3 {[%clk 0:02:57.3]}
2... e6 {[%clk 0:02:56.5]} 3. d4 {[%clk 0:02:57.2]} 3... cxd4 {[%clk 0:02:57.4]}
4. Nxd4 {[%clk 0:02:59.1]} 4... a6 {[%clk 0:02:58.1]} 5. c4 {[%clk 0:02:59.7]}
5... Nf6 {[%clk 0:02:55.5]} 6. Nc3 {[%clk 0:03:00]} 6... d6 {[%clk 0:02:57]} 7.
Be2 {[%clk 0:02:56.4]} 7... Nbd7 {[%clk 0:02:58]} 8. O-O {[%clk 0:02:55.8]} 8...
b6 {[%clk 0:02:58.1]} 9. Be3 {[%clk 0:02:56.1]} 9... Bb7 {[%clk 0:02:59.3]} 10.
f3 {[%clk 0:02:57.1]} 10... Rc8 {[%clk 0:03:00.3]} 11. Qd2 {[%clk 0:02:52.1]}
11... Qc7 {[%clk 0:02:59.4]} 12. Rfc1 {[%clk 0:02:48.5]} 12... Be7 {[%clk
0:02:53.8]} 13. a4 {[%clk 0:02:49.3]} 13... O-O {[%clk 0:02:46.9]} 14. a5 {[%clk
0:02:49.4]} 14... bxa5 {[%clk 0:02:47.8]} 15. Nb3 {[%clk 0:02:50.5]} 15... Ba8
{[%clk 0:02:35.8]} 16. Nxa5 {[%clk 0:02:48.3]} 16... Rb8 {[%clk 0:02:37]} 17. b4
{[%clk 0:02:23.2]} 17... Rxb4 {[%clk 0:02:23.8]} 18. Nb5 {[%clk 0:02:16.2]}
18... axb5 {[%clk 0:02:18.7]} 19. cxb5 {[%clk 0:02:07.1]} 19... Qd8 {[%clk
0:01:58]} 20. Qxb4 {[%clk 0:02:00.9]} 20... d5 {[%clk 0:01:59.4]} 21. Qd2 {[%clk
0:01:59.8]} 21... dxe4 {[%clk 0:01:59]} 22. Nc6 {[%clk 0:01:59.5]} 22... Bxc6
{[%clk 0:01:57.7]} 23. bxc6 {[%clk 0:01:59.8]} 23... exf3 {[%clk 0:01:57.3]} 24.
Bxf3 {[%clk 0:01:53.9]} 24... Ne5 {[%clk 0:01:58.5]} 25. Qxd8 {[%clk 0:01:27.3]}
25... Rxd8 {[%clk 0:01:58.2]} 26. c7 {[%clk 0:01:27.1]} 26... Nxf3+ {[%clk
0:01:58.8]} 27. gxf3 {[%clk 0:01:27.4]} 27... Rc8 {[%clk 0:02:00.4]} 28. Rab1
{[%clk 0:01:22.1]} 28... Bd6 {[%clk 0:01:52.6]} 29. Rb8 {[%clk 0:01:21.2]} 1-0